[Event "*** Titled Tuesday 3|2 Blitz"]
[Site "Chess.com"]
[Date "2015.12.01"]
[Round "5"]
[White "Saitama_Hero"]
[Black "Grootneus"]
[Result "0-1"]
[WhiteElo "2123"]
[BlackElo "2028"]
[TimeControl "180+2"]
[EndTime "12:01:24 PST"]
[Termination "Grootneus won by resignation"]

1. d4 {[%clk 0:03:01.9]} 1... Nf6 {[%clk 0:02:53]} 2. c4 {[%clk 0:03:03.4]} 2...
c5 {[%clk 0:02:51.6]} 3. d5 {[%clk 0:03:03]} 3... b5 {[%clk 0:02:52.3]} 4. cxb5
{[%clk 0:03:03]} 4... a6 {[%clk 0:02:53.6]} 5. b6 {[%clk 0:03:04.6]} 5... e6
{[%clk 0:02:54.1]} 6. Nc3 {[%clk 0:03:06.5]} 6... Nxd5 {[%clk 0:02:54.1]} 7.
Nxd5 {[%clk 0:03:08.4]} 7... exd5 {[%clk 0:02:56]} 8. Qxd5 {[%clk 0:03:09.7]}
8... Nc6 {[%clk 0:02:57.7]} 9. e4 {[%clk 0:03:11.6]} 9... Be7 {[%clk 0:02:57]}
10. Bc4 {[%clk 0:03:13.2]} 10... O-O {[%clk 0:02:57.9]} 11. Nf3 {[%clk
0:03:14.8]} 11... Rb8 {[%clk 0:02:58.6]} 12. O-O {[%clk 0:03:16.1]} 12... Rxb6
{[%clk 0:02:59.7]} 13. Qh5 {[%clk 0:03:17.6]} 13... d6 {[%clk 0:02:50]} 14. Rd1
{[%clk 0:02:58.9]} 14... Be6 {[%clk 0:02:43.9]} 15. Bxe6 {[%clk 0:02:58]} 15...
fxe6 {[%clk 0:02:45.8]} 16. Qg4 {[%clk 0:02:18.3]} 16... e5 {[%clk 0:02:34.6]}
17. Bh6 {[%clk 0:01:48.8]} 17... Rf7 {[%clk 0:02:18.5]} 18. Rd5 {[%clk
0:01:43.5]} 18... Rxb2 {[%clk 0:02:03.3]} 19. Ng5 {[%clk 0:01:14.4]} 19... Bxg5
{[%clk 0:01:51.2]} 20. Bxg5 {[%clk 0:01:16.3]} 20... Qd7 {[%clk 0:01:52.6]} 21.
Qg3 {[%clk 0:01:03.9]} 21... Nd4 {[%clk 0:01:45.8]} 22. Kh1 {[%clk 0:01:04.5]}
22... Rfxf2 {[%clk 0:01:33]} 23. Qxe5 {[%clk 0:01:03.6]} 23... dxe5 {[%clk
0:01:23.8]} 24. Rxd7 {[%clk 0:01:02.7]} 24... Rxg2 {[%clk 0:01:25.3]} 25. Rd8+
{[%clk 0:00:50.8]} 25... Kf7 {[%clk 0:01:24.2]} 26. Rf1+ {[%clk 0:00:52.7]}
26... Kg6 {[%clk 0:01:23.3]} 0-1

[Event "*** Titled Tuesday 3|2 Blitz"]
[Site "Chess.com"]
[Date "2015.12.01"]
[Round "5"]
[White "UltimateCrusher2"]
[Black "AnimationDomination"]
[Result "1-0"]
[WhiteElo "2032"]
[BlackElo "1748"]
[TimeControl "180+2"]
[EndTime "12:01:24 PST"]
[Termination "UltimateCrusher2 won by checkmate"]

1. g3 {[%clk 0:03:01.9]} 1... c5 {[%clk 0:02:59.9]} 2. Bg2 {[%clk 0:03:01.3]}
2... e6 {[%clk 0:03:01.1]} 3. Nf3 {[%clk 0:02:58.1]} 3... d5 {[%clk 0:03:01.2]}
4. O-O {[%clk 0:02:59.1]} 4... Nf6 {[%clk 0:02:56.4]} 5. d3 {[%clk 0:02:56.4]}
5... Nc6 {[%clk 0:02:52.1]} 6. Nbd2 {[%clk 0:02:58]} 6... Bd7 {[%clk 0:02:52.9]}
7. e4 {[%clk 0:02:59.1]} 7... Be7 {[%clk 0:02:53.5]} 8. e5 {[%clk 0:02:56.3]}
8... Ng8 {[%clk 0:02:46.8]} 9. Re1 {[%clk 0:02:57.2]} 9... Qc7 {[%clk
0:02:43.8]} 10. c3 {[%clk 0:02:51.5]} 10... Nh6 {[%clk 0:02:40.6]} 11. a3 {[%clk
0:02:49]} 11... Ng4 {[%clk 0:02:29.9]} 12. d4 {[%clk 0:02:37.3]} 12... cxd4
{[%clk 0:02:27.1]} 13. cxd4 {[%clk 0:02:39.2]} 13... O-O {[%clk 0:02:02.7]} 14.
h3 {[%clk 0:02:28.8]} 14... Nh6 {[%clk 0:02:01.4]} 15. b4 {[%clk 0:02:29.3]}
15... Nf5 {[%clk 0:02:00.2]} 16. Bb2 {[%clk 0:02:28.1]} 16... g6 {[%clk
0:01:57.2]} 17. Nb3 {[%clk 0:02:21.4]} 17... Rac8 {[%clk 0:01:48.6]} 18. Rc1
{[%clk 0:02:19.2]} 18... Qb8 {[%clk 0:01:37.5]} 19. Rf1 {[%clk 0:02:12.2]} 19...
a6 {[%clk 0:01:21.1]} 20. Qd2 {[%clk 0:02:12.7]} 20... b5 {[%clk 0:01:16.7]} 21.
g4 {[%clk 0:02:11.2]} 21... Ng7 {[%clk 0:01:17.3]} 22. Ng5 {[%clk 0:02:08.1]}
22... Rc7 {[%clk 0:01:07.8]} 23. f4 {[%clk 0:02:07.2]} 23... Na7 {[%clk
0:00:52.9]} 24. Nc5 {[%clk 0:02:06]} 24... Bxc5 {[%clk 0:00:51.5]} 25. dxc5
{[%clk 0:02:04.3]} 25... Bc6 {[%clk 0:00:50.5]} 26. Nf3 {[%clk 0:02:04.3]} 26...
Qd8 {[%clk 0:00:37.7]} 27. Nd4 {[%clk 0:02:05]} 27... Rd7 {[%clk 0:00:33.3]} 28.
f5 {[%clk 0:02:02.7]} 28... exf5 {[%clk 0:00:23]} 29. gxf5 {[%clk 0:02:04.6]}
29... Re8 {[%clk 0:00:21.2]} 30. e6 {[%clk 0:01:58.5]} 30... fxe6 {[%clk
0:00:21.5]} 31. Nxe6 {[%clk 0:02:00.2]} 31... Nxe6 {[%clk 0:00:21.5]} 32. fxe6
{[%clk 0:02:02.1]} 32... Rxe6 {[%clk 0:00:22.2]} 33. Qd4 {[%clk 0:02:03.8]}
33... h5 {[%clk 0:00:11.3]} 34. Qh8# {[%clk 0:02:03.7]} 1-0

[Event "*** Titled Tuesday 3|2 Blitz"]
[Site "Chess.com"]
[Date "2015.12.01"]
[Round "5"]
[White "VSERGUEI"]
[Black "olomi007"]
[Result "0-1"]
[WhiteElo "2438"]
[BlackElo "2437"]
[TimeControl "180+2"]
[EndTime "12:02:01 PST"]
[Termination "olomi007 won on time"]

1. d4 {[%clk 0:03:01.9]} 1... Nf6 {[%clk 0:03:00.8]} 2. c4 {[%clk 0:03:02.9]}
2... d6 {[%clk 0:03:02.2]} 3. Nc3 {[%clk 0:03:00.9]} 3... e5 {[%clk 0:03:03]} 4.
Nf3 {[%clk 0:03:01.6]} 4... Nbd7 {[%clk 0:03:03.4]} 5. e4 {[%clk 0:03:01.6]}
5... g6 {[%clk 0:03:04.4]} 6. Be2 {[%clk 0:03:02.4]} 6... Bg7 {[%clk 0:03:05.8]}
7. O-O {[%clk 0:03:03.2]} 7... O-O {[%clk 0:03:07]} 8. Re1 {[%clk 0:03:04.2]}
8... Re8 {[%clk 0:03:07.4]} 9. Bf1 {[%clk 0:03:05.2]} 9... a6 {[%clk 0:03:08.5]}
10. a3 {[%clk 0:03:02]} 10... exd4 {[%clk 0:03:01.4]} 11. Nxd4 {[%clk
0:03:01.5]} 11... Nc5 {[%clk 0:03:02.7]} 12. f3 {[%clk 0:03:01.5]} 12... a5
{[%clk 0:03:02.3]} 13. b3 {[%clk 0:02:56.2]} 13... c6 {[%clk 0:02:47.6]} 14. Rb1
{[%clk 0:02:51.9]} 14... d5 {[%clk 0:02:43.4]} 15. cxd5 {[%clk 0:02:49.2]} 15...
cxd5 {[%clk 0:02:44.6]} 16. e5 {[%clk 0:02:49.5]} 16... Nfd7 {[%clk 0:02:29]}
17. f4 {[%clk 0:02:47.5]} 17... f6 {[%clk 0:02:29.2]} 18. e6 {[%clk 0:02:43.6]}
18... Nf8 {[%clk 0:02:09.6]} 19. Bb5 {[%clk 0:02:38.6]} 19... Re7 {[%clk
0:01:50.9]} 20. f5 {[%clk 0:02:35.1]} 20... gxf5 {[%clk 0:01:48.1]} 21. b4
{[%clk 0:02:03]} 21... Ne4 {[%clk 0:01:36.5]} 22. Bb2 {[%clk 0:01:53.5]} 22...
Bxe6 {[%clk 0:01:28.8]} 23. Nxe6 {[%clk 0:01:50.6]} 23... Rxe6 {[%clk
0:01:25.3]} 24. Qxd5 {[%clk 0:01:50]} 24... Qb6+ {[%clk 0:01:13.9]} 25. Kh1
{[%clk 0:01:43.6]} 25... Nf2+ {[%clk 0:01:13.1]} 26. Kg1 {[%clk 0:01:44.3]}
26... Nh3+ {[%clk 0:01:14.1]} 27. Kh1 {[%clk 0:01:44.9]} 27... Qg1+ {[%clk
0:01:14.5]} 0-1

[Event "*** Titled Tuesday 3|2 Blitz"]
[Site "Chess.com"]
[Date "2015.12.01"]
[Round "5"]
[White "DeviatkinAndrey"]
[Black "Rikikits"]
[Result "1/2-1/2"]
[WhiteElo "2510"]
[BlackElo "2576"]
[TimeControl "180+2"]
[EndTime "12:02:21 PST"]
[Termination "Game drawn by agreement"]

1. d4 {[%clk 0:03:01.5]} 1... Nf6 {[%clk 0:03:00.9]} 2. Nf3 {[%clk 0:03:01.9]}
2... e6 {[%clk 0:03:02.1]} 3. Bg5 {[%clk 0:03:02]} 3... c5 {[%clk 0:03:03.1]} 4.
e3 {[%clk 0:03:02.2]} 4... Nc6 {[%clk 0:03:04.4]} 5. Nbd2 {[%clk 0:03:02.5]}
5... h6 {[%clk 0:03:04.5]} 6. Bxf6 {[%clk 0:02:42.3]} 6... Qxf6 {[%clk
0:03:06.4]} 7. Ne4 {[%clk 0:02:43.3]} 7... Qd8 {[%clk 0:03:07.9]} 8. dxc5 {[%clk
0:02:41]} 8... Bxc5 {[%clk 0:03:08.2]} 9. c3 {[%clk 0:02:23.5]} 9... Be7 {[%clk
0:03:04.3]} 10. Nd6+ {[%clk 0:02:24.1]} 10... Bxd6 {[%clk 0:02:55.2]} 11. Qxd6
{[%clk 0:02:24.4]} 11... Qe7 {[%clk 0:02:57.1]} 12. O-O-O {[%clk 0:02:17.9]}
12... Qxd6 {[%clk 0:02:57.1]} 13. Rxd6 {[%clk 0:02:19]} 13... Ke7 {[%clk
0:02:59]} 14. Rd2 {[%clk 0:02:19.8]} 14... d5 {[%clk 0:03:00.1]} 15. Bd3 {[%clk
0:02:20.4]} 15... Bd7 {[%clk 0:02:46.1]} 16. e4 {[%clk 0:02:21]} 16... dxe4
{[%clk 0:02:45.4]} 17. Bxe4 {[%clk 0:02:22.2]} 17... Rhd8 {[%clk 0:02:47.1]} 18.
Rhd1 {[%clk 0:02:20.1]} 18... Be8 {[%clk 0:02:47.5]} 19. Rxd8 {[%clk 0:02:19.5]}
19... Rxd8 {[%clk 0:02:49.4]} 20. Rxd8 {[%clk 0:02:20.4]} 20... Nxd8 {[%clk
0:02:50.5]} 21. h4 {[%clk 0:02:16.6]} 21... f5 {[%clk 0:02:46.8]} 22. Bd3 {[%clk
0:02:17]} 22... Kf6 {[%clk 0:02:48.7]} 23. Nd4 {[%clk 0:02:10.3]} 23... g5
{[%clk 0:02:35.8]} 24. hxg5+ {[%clk 0:02:10.6]} 24... hxg5 {[%clk 0:02:37.7]}
25. Kd2 {[%clk 0:01:44.5]} 25... Nc6 {[%clk 0:02:37.3]} 26. g3 {[%clk
0:01:21.4]} 26... Ne5 {[%clk 0:02:20.8]} 27. Be2 {[%clk 0:01:19.8]} 27... f4
{[%clk 0:02:18.5]} 28. gxf4 {[%clk 0:01:20.2]} 28... gxf4 {[%clk 0:02:20.4]} 29.
c4 {[%clk 0:01:12.6]} 29... Nc6 {[%clk 0:02:06.9]} 30. Nxc6 {[%clk 0:00:56.9]}
30... Bxc6 {[%clk 0:02:08.8]} 31. b4 {[%clk 0:00:58.5]} 31... b6 {[%clk
0:02:02.4]} 32. Kc3 {[%clk 0:00:56.5]} 32... Ke5 {[%clk 0:01:59.7]} 33. Bd3
{[%clk 0:00:56.1]} 33... Kd6 {[%clk 0:01:56]} 34. Bg6 {[%clk 0:00:53.1]} 34...
e5 {[%clk 0:01:56.1]} 35. Kd3 {[%clk 0:00:53.7]} 35... Bg2 {[%clk 0:01:51.1]}
36. Be4 {[%clk 0:00:51.9]} 36... Bf1+ {[%clk 0:01:45.6]} 37. Kc3 {[%clk
0:00:52.7]} 37... Be2 {[%clk 0:01:47.1]} 38. a3 {[%clk 0:00:52.5]} 38... Bf1
{[%clk 0:01:47.3]} 39. Kb3 {[%clk 0:00:52.8]} 39... Be2 {[%clk 0:01:43.6]} 40.
Kc3 {[%clk 0:00:54.1]} 40... Bf1 {[%clk 0:01:44.5]} 41. Kb3 {[%clk 0:00:48.3]}
41... Bh3 {[%clk 0:01:44.8]} 42. Kc3 {[%clk 0:00:47.9]} 42... Be6 {[%clk
0:01:45.6]} 43. Kd3 {[%clk 0:00:47.8]} 43... Bf7 {[%clk 0:01:39.6]} 44. Kc3
{[%clk 0:00:48.5]} 44... Bh5 {[%clk 0:01:31.9]} 45. Kd3 {[%clk 0:00:48.3]}
1/2-1/2

[Event "*** Titled Tuesday 3|2 Blitz"]
[Site "Chess.com"]
[Date "2015.12.01"]
[Round "5"]
[White "spectralsoul"]
[Black "GMharikrishna"]
[Result "1-0"]
[WhiteElo "2494"]
[BlackElo "2518"]
[TimeControl "180+2"]
[EndTime "12:02:22 PST"]
[Termination "spectralsoul won on time"]

1. Nf3 {[%clk 0:03:01.9]} 1... Nf6 {[%clk 0:03:00.4]} 2. c4 {[%clk 0:03:02.9]}
2... b6 {[%clk 0:03:00]} 3. g3 {[%clk 0:03:02.4]} 3... c5 {[%clk 0:03:00.1]} 4.
Bg2 {[%clk 0:03:04.3]} 4... Bb7 {[%clk 0:03:01.4]} 5. O-O {[%clk 0:03:05.6]}
5... g6 {[%clk 0:03:02.8]} 6. d4 {[%clk 0:03:03.5]} 6... cxd4 {[%clk 0:03:03.6]}
7. Qxd4 {[%clk 0:03:05.2]} 7... Bg7 {[%clk 0:03:05.1]} 8. Nc3 {[%clk 0:03:05.6]}
8... d6 {[%clk 0:03:06.4]} 9. Rd1 {[%clk 0:03:05]} 9... Nbd7 {[%clk 0:03:06.5]}
10. Rb1 {[%clk 0:02:57.4]} 10... Rc8 {[%clk 0:02:57.4]} 11. b3 {[%clk
0:02:58.4]} 11... O-O {[%clk 0:02:52.3]} 12. Qh4 {[%clk 0:02:59.3]} 12... Rc5
{[%clk 0:02:52.6]} 13. g4 {[%clk 0:02:32.7]} 13... h5 {[%clk 0:01:56.3]} 14. g5
{[%clk 0:02:31.7]} 14... Nh7 {[%clk 0:01:48.4]} 15. Bd2 {[%clk 0:02:24.9]} 15...
Bxf3 {[%clk 0:01:34.5]} 16. Bxf3 {[%clk 0:02:25.7]} 16... Bxc3 {[%clk
0:01:33.6]} 17. Bxc3 {[%clk 0:02:27.3]} 17... Nxg5 {[%clk 0:01:34.2]} 18. Bg2
{[%clk 0:02:27.9]} 18... Nh7 {[%clk 0:01:29.9]} 19. Bd4 {[%clk 0:02:22.8]} 19...
Rg5 {[%clk 0:01:28.9]} 20. f4 {[%clk 0:02:13.4]} 20... Rg4 {[%clk 0:01:24.6]}
21. Qf2 {[%clk 0:02:14.4]} 21... e5 {[%clk 0:01:25.5]} 22. fxe5 {[%clk
0:02:08.5]} 22... Ng5 {[%clk 0:01:18.3]} 23. Kh1 {[%clk 0:02:06]} 23... Ne6
{[%clk 0:01:11]} 24. Ba1 {[%clk 0:02:00.3]} 24... dxe5 {[%clk 0:01:03.4]} 25.
Bxe5 {[%clk 0:01:47.5]} 25... Qg5 {[%clk 0:01:03.7]} 26. Bd6 {[%clk 0:01:48.6]}
26... Rd8 {[%clk 0:00:50.9]} 27. h3 {[%clk 0:01:48.7]} 27... Nf6 {[%clk
0:00:13.9]} 28. h4 {[%clk 0:01:20.2]} 28... Rxh4+ {[%clk 0:00:10.4]} 29. Kg1
{[%clk 0:01:01.5]} 1-0

[Event "*** Titled Tuesday 3|2 Blitz"]
[Site "Chess.com"]
[Date "2015.12.01"]
[Round "5"]
[White "Canairez"]
[Black "AndreyOstrovskiy"]
[Result "1-0"]
[WhiteElo "2239"]
[BlackElo "2427"]
[TimeControl "180+2"]
[EndTime "12:02:26 PST"]
[Termination "Canairez won by resignation"]

1. d4 {[%clk 0:03:01.9]} 1... Nf6 {[%clk 0:03:00.5]} 2. c4 {[%clk 0:03:01.9]}
2... e6 {[%clk 0:03:01.8]} 3. Nf3 {[%clk 0:03:01.8]} 3... b6 {[%clk 0:03:02.9]}
4. e3 {[%clk 0:03:02.2]} 4... Bb7 {[%clk 0:03:00.9]} 5. Bd3 {[%clk 0:03:03.6]}
5... c5 {[%clk 0:03:00.8]} 6. O-O {[%clk 0:03:01.8]} 6... Be7 {[%clk 0:03:00.2]}
7. Nc3 {[%clk 0:03:03.1]} 7... cxd4 {[%clk 0:02:59]} 8. Nxd4 {[%clk 0:02:58.4]}
8... O-O {[%clk 0:02:58.5]} 9. b3 {[%clk 0:02:59]} 9... a6 {[%clk 0:02:58.8]}
10. Bb2 {[%clk 0:03:00]} 10... d6 {[%clk 0:03:00.3]} 11. Qc2 {[%clk 0:02:52.6]}
11... Nbd7 {[%clk 0:03:01]} 12. Rfd1 {[%clk 0:02:49]} 12... Rc8 {[%clk
0:03:01.7]} 13. Rac1 {[%clk 0:02:49.5]} 13... Qc7 {[%clk 0:03:02.6]} 14. Qb1
{[%clk 0:02:50]} 14... Qb8 {[%clk 0:03:03.9]} 15. Qa1 {[%clk 0:02:50.1]} 15...
Qa8 {[%clk 0:03:05.3]} 16. Bf1 {[%clk 0:02:51.1]} 16... Rfe8 {[%clk 0:02:59.4]}
17. h3 {[%clk 0:02:49.2]} 17... Ne5 {[%clk 0:02:42.2]} 18. Na4 {[%clk
0:02:42.3]} 18... Ned7 {[%clk 0:02:42.1]} 19. Nc3 {[%clk 0:02:41.9]} 19... Kh8
{[%clk 0:02:38.6]} 20. a3 {[%clk 0:02:25]} 20... Rg8 {[%clk 0:02:37.7]} 21. b4
{[%clk 0:02:23.1]} 21... g5 {[%clk 0:02:34.2]} 22. Na4 {[%clk 0:01:46.9]} 22...
Rg7 {[%clk 0:02:26]} 23. c5 {[%clk 0:01:42.7]} 23... g4 {[%clk 0:01:55.2]} 24.
cxd6 {[%clk 0:01:33.9]} 24... gxh3 {[%clk 0:01:45.8]} 25. g3 {[%clk 0:01:15.1]}
25... Rxc1 {[%clk 0:01:39.5]} 26. Rxc1 {[%clk 0:00:53.7]} 26... Bxd6 {[%clk
0:01:23.7]} 27. Nxe6 {[%clk 0:00:42]} 27... Bxg3 {[%clk 0:01:23.9]} 28. fxg3
{[%clk 0:00:37.8]} 28... Rxg3+ {[%clk 0:01:11.3]} 29. Kh2 {[%clk 0:00:39.1]}
29... Qb8 {[%clk 0:01:03.9]} 30. Bxf6+ {[%clk 0:00:37.4]} 30... Rg7+ {[%clk
0:01:03.8]} 31. Nf4 {[%clk 0:00:37]} 31... Nxf6 {[%clk 0:01:01.6]} 32. Qxf6
{[%clk 0:00:38.9]} 32... Qe8 {[%clk 0:00:46.9]} 33. Rd1 {[%clk 0:00:38.3]} 1-0

[Event "*** Titled Tuesday 3|2 Blitz"]
[Site "Chess.com"]
[Date "2015.12.01"]
[Round "5"]
[White "amaidel"]
[Black "oggy1984"]
[Result "1-0"]
[WhiteElo "2391"]
[BlackElo "2214"]
[TimeControl "180+2"]
[EndTime "12:02:34 PST"]
[Termination "amaidel won on time"]

1. e4 {[%clk 0:03:01.9]} 1... c5 {[%clk 0:02:59.2]} 2. Nf3 {[%clk 0:03:02.3]}
2... e6 {[%clk 0:02:59.6]} 3. d4 {[%clk 0:03:02.8]} 3... cxd4 {[%clk 0:03:00.1]}
4. Nxd4 {[%clk 0:03:04.7]} 4... Nf6 {[%clk 0:03:00.6]} 5. Nc3 {[%clk 0:03:05.3]}
5... d6 {[%clk 0:03:00.9]} 6. f4 {[%clk 0:03:03.7]} 6... a6 {[%clk 0:03:00.4]}
7. Bd3 {[%clk 0:03:04.2]} 7... Qc7 {[%clk 0:03:00.4]} 8. O-O {[%clk 0:03:04.9]}
8... Nbd7 {[%clk 0:02:59.1]} 9. Kh1 {[%clk 0:03:05.9]} 9... b5 {[%clk
0:02:56.6]} 10. Qe1 {[%clk 0:03:05.9]} 10... Bb7 {[%clk 0:02:56.3]} 11. Bd2
{[%clk 0:03:05.8]} 11... h5 {[%clk 0:02:44.1]} 12. a4 {[%clk 0:03:04.4]} 12...
b4 {[%clk 0:02:42.1]} 13. Nd1 {[%clk 0:03:05.1]} 13... a5 {[%clk 0:02:15.7]} 14.
Nb5 {[%clk 0:02:59.7]} 14... Qc6 {[%clk 0:02:04.8]} 15. Nf2 {[%clk 0:03:00.1]}
15... h4 {[%clk 0:02:00.8]} 16. c3 {[%clk 0:02:57.8]} 16... h3 {[%clk
0:01:58.7]} 17. gxh3 {[%clk 0:02:53.8]} 17... Nc5 {[%clk 0:01:51.5]} 18. Bc2
{[%clk 0:02:39.2]} 18... d5 {[%clk 0:01:14.1]} 19. Nd4 {[%clk 0:02:32.9]} 19...
Qc7 {[%clk 0:01:11.6]} 20. e5 {[%clk 0:02:33.7]} 20... Nfe4 {[%clk 0:01:08.8]}
21. cxb4 {[%clk 0:02:33.1]} 21... axb4 {[%clk 0:00:53]} 22. Bxb4 {[%clk
0:02:23.3]} 22... Qb6 {[%clk 0:00:52]} 23. a5 {[%clk 0:02:20.4]} 23... Qa6
{[%clk 0:00:39.1]} 24. Nxe4 {[%clk 0:02:19.5]} 24... dxe4 {[%clk 0:00:37]} 25.
Qe3 {[%clk 0:02:20.1]} 25... Nd3 {[%clk 0:00:23.9]} 26. Ba4+ {[%clk 0:02:17.9]}
26... Kd8 {[%clk 0:00:23.5]} 27. Bb5 {[%clk 0:01:51.7]} 27... Bxb4 {[%clk
0:00:14.8]} 28. Bxa6 {[%clk 0:01:51.6]} 28... Rxa6 {[%clk 0:00:16.7]} 29. f5
{[%clk 0:01:52.2]} 29... Bc5 {[%clk 0:00:14.3]} 30. fxe6 {[%clk 0:01:51.6]}
30... fxe6 {[%clk 0:00:12.2]} 31. Rf7 {[%clk 0:01:51.8]} 31... Bd5 {[%clk
0:00:09.6]} 32. h4 {[%clk 0:01:24.5]} 32... Kc8 {[%clk 0:00:03.9]} 33. b4 {[%clk
0:01:15.9]} 1-0

[Event "*** Titled Tuesday 3|2 Blitz"]
[Site "Chess.com"]
[Date "2015.12.01"]
[Round "5"]
[White "chessloveyou"]
[Black "GianmarcoVaR"]
[Result "0-1"]
[WhiteElo "2137"]
[BlackElo "2166"]
[TimeControl "180+2"]
[EndTime "12:03:12 PST"]
[Termination "GianmarcoVaR won by resignation"]

1. d4 {[%clk 0:03:01.9]} 1... g6 {[%clk 0:03:01.1]} 2. Nf3 {[%clk 0:03:01.6]}
2... Bg7 {[%clk 0:03:01.8]} 3. g3 {[%clk 0:03:02.5]} 3... d6 {[%clk 0:03:02.4]}
4. Bg2 {[%clk 0:03:02.3]} 4... f5 {[%clk 0:03:04]} 5. O-O {[%clk 0:03:03.1]}
5... Nf6 {[%clk 0:03:05.5]} 6. c4 {[%clk 0:03:03.2]} 6... O-O {[%clk 0:03:06.9]}
7. Nc3 {[%clk 0:03:01]} 7... c6 {[%clk 0:03:05.3]} 8. Bg5 {[%clk 0:03:01.4]}
8... Qe8 {[%clk 0:03:05.6]} 9. d5 {[%clk 0:02:54.6]} 9... Na6 {[%clk 0:02:50.1]}
10. dxc6 {[%clk 0:02:51.1]} 10... bxc6 {[%clk 0:02:51.5]} 11. Nd4 {[%clk
0:02:51.9]} 11... Bd7 {[%clk 0:02:53.1]} 12. a3 {[%clk 0:02:44.5]} 12... h6
{[%clk 0:02:50.3]} 13. Bc1 {[%clk 0:02:38.2]} 13... e5 {[%clk 0:02:49]} 14. Ndb5
{[%clk 0:02:34.4]} 14... cxb5 {[%clk 0:02:48.3]} 15. Bxa8 {[%clk 0:02:34.7]}
15... Qxa8 {[%clk 0:02:49.6]} 16. cxb5 {[%clk 0:02:33.3]} 16... Nc7 {[%clk
0:02:50.4]} 17. Qxd6 {[%clk 0:02:32.3]} 17... Nxb5 {[%clk 0:02:49.6]} 18. Nxb5
{[%clk 0:02:30.6]} 18... Bxb5 {[%clk 0:02:51.1]} 19. Qxe5 {[%clk 0:02:31.4]}
19... Qe8 {[%clk 0:02:50.3]} 20. Qc5 {[%clk 0:02:22.1]} 20... Qxe2 {[%clk
0:02:47]} 21. Be3 {[%clk 0:02:11.3]} 21... Ng4 {[%clk 0:02:44.1]} 22. Qd5+
{[%clk 0:02:07.7]} 22... Kh7 {[%clk 0:02:43.5]} 23. Rfe1 {[%clk 0:02:08.3]}
23... Nxe3 {[%clk 0:02:43.2]} 24. fxe3 {[%clk 0:02:00.7]} 24... Qd3 {[%clk
0:02:43]} 25. Qxd3 {[%clk 0:01:50.6]} 25... Bxd3 {[%clk 0:02:44.5]} 26. Rad1
{[%clk 0:01:52.2]} 26... Rd8 {[%clk 0:02:43]} 27. Rd2 {[%clk 0:01:50.4]} 27...
Bxb2 {[%clk 0:02:10.9]} 28. Rxb2 {[%clk 0:01:44.8]} 28... Be4 {[%clk 0:02:12.2]}
29. Kf2 {[%clk 0:01:41.4]} 29... h5 {[%clk 0:02:08.9]} 30. Rc1 {[%clk
0:01:27.7]} 30... Rd7 {[%clk 0:02:10.2]} 31. Ke2 {[%clk 0:01:24.8]} 31... Kh6
{[%clk 0:02:10.7]} 32. Rd2 {[%clk 0:01:24.5]} 32... Bf3+ {[%clk 0:02:09.8]} 33.
Ke1 {[%clk 0:01:23.7]} 33... Rb7 {[%clk 0:02:10.9]} 34. a4 {[%clk 0:01:07.8]}
34... Kg5 {[%clk 0:02:08.8]} 35. a5 {[%clk 0:01:07.5]} 35... h4 {[%clk
0:01:55.6]} 36. gxh4+ {[%clk 0:01:06.8]} 36... Kxh4 {[%clk 0:01:57.2]} 37. Rd4+
{[%clk 0:01:06.9]} 37... Be4 {[%clk 0:01:56.9]} 38. Rc8 {[%clk 0:00:45.5]} 38...
Kg4 {[%clk 0:01:54.2]} 39. Rh8 {[%clk 0:00:39.6]} 39... Rb3 {[%clk 0:01:44.7]}
40. Ke2 {[%clk 0:00:34]} 40... Ra3 {[%clk 0:01:46.1]} 41. Rg8 {[%clk 0:00:22]}
41... g5 {[%clk 0:01:43.6]} 42. Rd7 {[%clk 0:00:17]} 42... Ra2+ {[%clk
0:01:41.4]} 43. Kd1 {[%clk 0:00:16.2]} 43... Rxa5 {[%clk 0:01:41]} 44. Rgg7
{[%clk 0:00:15.6]} 44... Ra1+ {[%clk 0:01:38.2]} 45. Kd2 {[%clk 0:00:16.3]}
45... a5 {[%clk 0:01:38]} 46. Rg8 {[%clk 0:00:14.5]} 46... Ra2+ {[%clk
0:01:38.2]} 47. Kc3 {[%clk 0:00:15]} 47... Rc2+ {[%clk 0:01:37]} 48. Kb3 {[%clk
0:00:07.2]} 48... Rxh2 {[%clk 0:01:38.1]} 49. Ka4 {[%clk 0:00:06.7]} 49... Bc6+
{[%clk 0:01:38.3]} 0-1

[Event "*** Titled Tuesday 3|2 Blitz"]
[Site "Chess.com"]
[Date "2015.12.01"]
[Round "5"]
[White "GrigorGrigorov"]
[Black "LuckyTiger"]
[Result "0-1"]
[WhiteElo "2542"]
[BlackElo "2524"]
[TimeControl "180+2"]
[EndTime "12:03:18 PST"]
[Termination "LuckyTiger won by resignation"]

1. d4 {[%clk 0:03:01.9]} 1... Nf6 {[%clk 0:03:01.1]} 2. c4 {[%clk 0:03:02.6]}
2... c5 {[%clk 0:03:02.3]} 3. d5 {[%clk 0:03:02.6]} 3... b5 {[%clk 0:03:03.6]}
4. cxb5 {[%clk 0:03:03.7]} 4... a6 {[%clk 0:03:05.3]} 5. bxa6 {[%clk 0:03:04.5]}
5... g6 {[%clk 0:03:06]} 6. Nc3 {[%clk 0:03:05.9]} 6... Bxa6 {[%clk 0:03:07.2]}
7. e4 {[%clk 0:03:06]} 7... Qa5 {[%clk 0:03:08.4]} 8. Bxa6 {[%clk 0:02:50.4]}
8... Nxa6 {[%clk 0:03:10.3]} 9. Ne2 {[%clk 0:02:50.6]} 9... Nxe4 {[%clk
0:03:07.8]} 10. O-O {[%clk 0:02:51.5]} 10... Nf6 {[%clk 0:03:01]} 11. Bg5 {[%clk
0:02:46.2]} 11... Bg7 {[%clk 0:03:02.1]} 12. d6 {[%clk 0:02:46.3]} 12... e6
{[%clk 0:03:00.7]} 13. Qd2 {[%clk 0:02:32]} 13... O-O {[%clk 0:02:58.6]} 14. Bh6
{[%clk 0:02:25.7]} 14... Nb4 {[%clk 0:02:25.7]} 15. Bxg7 {[%clk 0:02:25.7]}
15... Kxg7 {[%clk 0:02:27.6]} 16. Nf4 {[%clk 0:02:06.7]} 16... Ra6 {[%clk
0:02:06.2]} 17. Rfd1 {[%clk 0:01:58.3]} 17... e5 {[%clk 0:01:36.7]} 18. Nfe2
{[%clk 0:01:39.7]} 18... c4 {[%clk 0:01:37.9]} 19. Qe3 {[%clk 0:01:26.4]} 19...
Nc2 {[%clk 0:01:35.2]} 20. Qg5 {[%clk 0:01:18.9]} 20... Nxa1 {[%clk 0:01:34.5]}
21. Ng3 {[%clk 0:01:19.3]} 21... Ng8 {[%clk 0:00:50.5]} 22. Rxa1 {[%clk
0:00:35.6]} 22... f6 {[%clk 0:00:36.8]} 23. Qd2 {[%clk 0:00:36.2]} 23... Qb4
{[%clk 0:00:30.5]} 24. Rd1 {[%clk 0:00:31.2]} 24... Rb8 {[%clk 0:00:31.2]} 25.
h4 {[%clk 0:00:28.1]} 25... Qxb2 {[%clk 0:00:29.1]} 26. Qe3 {[%clk 0:00:26.7]}
26... Ra3 {[%clk 0:00:28]} 27. Nge4 {[%clk 0:00:27.8]} 27... Qc2 {[%clk
0:00:17.7]} 28. Rd2 {[%clk 0:00:21.4]} 28... Qc1+ {[%clk 0:00:18]} 29. Kh2
{[%clk 0:00:22.2]} 29... Rb1 {[%clk 0:00:17.9]} 30. Kg3 {[%clk 0:00:17.7]} 30...
Nh6 {[%clk 0:00:16.7]} 31. Qc5 {[%clk 0:00:16.5]} 31... Nf5+ {[%clk 0:00:17.2]}
32. Kg4 {[%clk 0:00:17.6]} 32... h5+ {[%clk 0:00:16.6]} 33. Kf3 {[%clk
0:00:18.5]} 33... Rxc3+ {[%clk 0:00:17.3]} 34. Nxc3 {[%clk 0:00:19.3]} 34...
Qxd2 {[%clk 0:00:15]} 35. Ne4 {[%clk 0:00:19.5]} 35... Qf4+ {[%clk 0:00:14.4]}
0-1